fUSD/lending_fUSD_20250826
["ID","MTS","AMOUNT","RATE_DAILY","PERIOD"]
[381471453,1756227047956,-1500.0,0.00026368,2]
[381471454,1756227047966,-1500.0,0.00026368,2]
[381471455,1756227047976,-1500.0,0.00026368,2]
[381471456,1756227047985,-1500.0,0.00026368,2]
[381471457,1756227047995,-1500.0,0.00026368,2]
[381471458,1756227048004,-150.0,0.00026373,2]
[381471459,1756227048014,-1425.0,0.0002638,2]
[381471460,1756227048024,-150.0,0.00026393,2]
[381471461,1756227048035,-352.36,0.00026395,2]
[381471462,1756227048044,-1000.0,0.00026406,2]
[381471463,1756227048054,-1720.12734939,0.00026416,2]
[381471464,1756227048064,-12168.08468224,0.00026459,2]
[381471465,1756227048074,-1400.0,0.00026473,2]
[381471466,1756227048084,-1400.0,0.00026473,2]
[381471467,1756227048093,-3000.0,0.00026473,2]
[381471468,1756227048103,-1000.0,0.00026478,2]
[381471469,1756227048113,-1425.0,0.00026488,2]
[381471470,1756227048123,-181.907,0.00026499,13]
[381471471,1756227048133,-1709.571,0.00026499,13]
[381471472,1756227048144,-150.0,0.00026509,2]
[381471473,1756227048156,-1000.0,0.00026542,2]
[381471474,1756227048166,-600.0,0.00026548,2]
[381471475,1756227048176,-150.0,0.00026569,2]
[381471476,1756227048187,-471.52780352,0.00026576,2]
[381471477,1756227048198,-401.22254815,0.00026576,2]
[381471478,1756227048210,-441.0,0.00026576,2]
[381471479,1756227048221,-441.0,0.00026576,2]
[381471480,1756227048232,-500.0,0.00026576,2]
[381471481,1756227048242,-500.0,0.00026576,2]
[381471482,1756227048253,-815.0,0.00026576,2]
[381471483,1756227048264,-150.0,0.00026576,2]
[381471484,1756227048274,-500.0,0.00026576,2]
[381471485,1756227048284,-257.84538595,0.00026576,2]
[381471486,1756227048294,-150.0,0.00026576,2]
[381471487,1756227048304,-500.0,0.00026576,2]
[381471488,1756227048314,-500.0,0.00026576,2]
[381471489,1756227048324,-500.0,0.00026576,2]
[381471490,1756227048333,-473.0,0.00026576,2]
[381471491,1756227048344,-200.0,0.00026576,2]
[381471492,1756227048353,-500.0,0.00026576,2]
[381471493,1756227048364,-500.0,0.00026576,2]
[381471494,1756227048374,-150.0,0.00026587,2]
[381471495,1756227048384,-1000.0,0.00026595,2]
[381471496,1756227048395,-1000.0,0.00026623,2]
[381471497,1756227048405,-1425.0,0.00026624,2]
[381471498,1756227048417,-150.0,0.00026637,2]
[381471499,1756227048427,-1425.0,0.00026643,2]
[381471500,1756227048436,-1425.0,0.00026648,2]
[381471501,1756227048446,-1000.0,0.00026673,2]
[381471502,1756227048461,-238.43,0.00026676,2]
[381471503,1756227048471,-150.0,0.00026685,2]
[381471504,1756227048481,-150.0,0.00026686,2]
[381471505,1756227048491,-1425.0,0.00026696,2]
[381471506,1756227048502,-1700.0,0.000267,9]
[381471507,1756227048512,-120485.902416,0.00026715,3]
[381471508,1756227048522,-30121.475604,0.00026725,3]
[381471509,1756227048532,-1000.0,0.00026734,2]
[381471510,1756227048542,-42261.2673246,0.00026735,2]
[381471511,1756227048552,-145293.5464901,0.00026735,2]
[381471512,1756227048562,-32804.0561329,0.00026735,2]
[381471513,1756227048572,-11162.20959019,0.0002674,2]
[381471514,1756227048583,-1425.0,0.0002674,2]
[381471515,1756227048592,-200.0,0.00026744,2]
[381471516,1756227048602,-150.0,0.00026759,2]
[381471517,1756227048611,-221.30394234,0.00026773,2]
[381471518,1756227048621,-1500.0,0.00026773,2]
[381471519,1756227048630,-1000.0,0.00026776,2]
[381471520,1756227048640,-150.0,0.00026777,2]
[381471521,1756227048649,-1000.0,0.00026781,2]
[381471522,1756227048661,-1000.0,0.00026793,2]
[381471523,1756227048672,-2579.37,0.000268,7]
[381471524,1756227048682,-1119.2,0.000268,7]
[381471525,1756227048691,-2300.0,0.000268,9]
[381471526,1756227048700,-1425.0,0.00026836,2]
[381471527,1756227048713,-12243.46107709,0.00026836,2]
[381471528,1756227048723,-441.0,0.0002685,2]
[381471529,1756227048732,-441.0,0.0002685,2]
[381471530,1756227048742,-500.0,0.0002685,2]
[381471531,1756227048751,-500.0,0.0002685,2]
[381471532,1756227048761,-815.0,0.0002685,2]
[381471533,1756227048771,-500.0,0.0002685,2]
[381471534,1756227048780,-150.0,0.0002685,2]
[381471535,1756227048790,-500.0,0.0002685,2]
[381471536,1756227048799,-500.0,0.0002685,2]
[381471537,1756227048810,-500.0,0.0002685,2]
[381471538,1756227048819,-473.0,0.0002685,2]
[381471539,1756227048829,-500.0,0.0002685,2]
[381471540,1756227048839,-500.0,0.0002685,2]
[381471541,1756227048848,-150.0,0.0002685,2]
[381471542,1756227048857,-150.0,0.0002685,2]
[381471543,1756227048867,-500.0,0.0002685,2]
[381471544,1756227048876,-150.0,0.0002685,2]
[381471545,1756227048885,-500.0,0.0002685,2]
[381471546,1756227048895,-500.0,0.0002685,2]
[381471547,1756227048904,-150.0,0.0002685,2]
[381471548,1756227048914,-150.0,0.0002685,2]
[381471549,1756227048923,-150.0,0.0002685,2]
[381471550,1756227048932,-150.41158014,0.0002685,2]
[381471551,1756227048942,-150.0,0.0002685,2]
[381471552,1756227048951,-500.0,0.0002685,2]
[381471553,1756227048963,-3500.0,0.0002686,2]
[381471554,1756227048973,-1425.0,0.00026863,2]
[381471555,1756227048983,-500.0,0.0002687,2]
[381471556,1756227048992,-1000.0,0.0002687,2]
[381471557,1756227049001,-1000.0,0.0002688,2]
[381471558,1756227049011,-1000.0,0.00026889,2]
[381471559,1756227049020,-470.51793934,0.00026891,2]
[381471560,1756227049031,-150.0,0.00026892,2]
[381471561,1756227049040,-2900.0,0.000269,9]
[381471562,1756227049050,-330.80651322,0.00026902,2]
[381471563,1756227049059,-150.0,0.00026903,2]
[381471564,1756227049069,-1000.0,0.00026909,2]
[381471565,1756227049078,-588.30453535,0.00026909,2]
[381471566,1756227049087,-1000.0,0.00026912,2]
[381471567,1756227049096,-2000.0,0.00026916,2]
[381471568,1756227049106,-235.4229631,0.00026916,2]
[381471569,1756227049115,-1153.2398906,0.00026916,2]
[381471570,1756227049125,-2000.0,0.00026916,2]
[381471571,1756227049135,-2000.0,0.00026916,2]
[381471572,1756227049144,-2000.0,0.00026916,2]
[381471573,1756227049153,-2000.0,0.00026916,2]
[381471574,1756227049163,-1425.0,0.00026921,2]
[381471575,1756227049172,-489.99943124,0.00026928,2]
[381471576,1756227049181,-309.29654756,0.00026941,2]
[381471577,1756227049191,-512.67547477,0.00026941,2]
[381471578,1756227049201,-2853.06043668,0.00026947,13]
[381471579,1756227049213,-150.0,0.0002695,2]
[381471580,1756227049222,-150.0,0.00026956,2]
[381471581,1756227049231,-151.84874432,0.00026966,2]
[381471582,1756227049241,-500.0,0.0002697,2]
[381471583,1756227049250,-1000.0,0.0002697,2]
[381471584,1756227049259,-150.0,0.00026971,2]
[381471585,1756227049268,-1425.0,0.00026975,2]
[381471586,1756227049277,-150.0,0.00026977,2]
[381471587,1756227049286,-150.0,0.00026979,2]
[381471588,1756227049295,-1269.74,0.00026979,7]
[381471589,1756227049304,-150.0,0.0002698,2]
[381471590,1756227049315,-1000.0,0.00026989,2]
[381471591,1756227049324,-25815.33559592,0.0002699,6]
[381471592,1756227049334,-150.0,0.00026994,2]
[381471593,1756227049344,-926.0,0.00026995,2]
[381471594,1756227049354,-2031.0,0.00026995,2]
[381471595,1756227049365,-566.0,0.00026995,2]
[381471596,1756227049377,-599.0,0.00026995,2]
[381471597,1756227049389,-1298.0,0.00026995,2]
[381471598,1756227049400,-1658.0,0.00026995,2]
[381471599,1756227049411,-2192.777,0.00026995,2]
[381471600,1756227049422,-4155.0,0.00026995,2]
[381471601,1756227049433,-1000.0,0.00026999,2]
[381471602,1756227049444,-1000.0,0.00026999,2]
[381471603,1756227049454,-491.07179834,0.00026999,2]
[381471604,1756227049473,-150.0,0.00026999,2]
[381471605,1756227049483,-4038.93,0.00027,7]
[381471606,1756227049493,-539.0,0.00027,7]
[381471607,1756227049504,-165.7,0.00027,16]
[381471608,1756227049515,-1564.08,0.00027,7]
[381471609,1756227049525,-161.0,0.00027,7]
[381471610,1756227049534,-150.0,0.00027002,2]
[381471611,1756227049543,-1656.3468593,0.00027005,2]
[381471612,1756227049553,-2000.0,0.00027009,2]
[381471613,1756227049563,-2000.0,0.00027009,2]
[381471614,1756227049572,-351.225,0.00027009,2]
[381471615,1756227049582,-300.0,0.00027009,10]
[381471616,1756227049592,-300.0,0.00027009,10]
[381471617,1756227049603,-1230448.29513463,0.0002701,2]
[381471618,1756227049613,-4023.58639016,0.0002701,2]
[381471619,1756227049624,-152.8756139,0.0002701,2]
[381471620,1756227049633,-2911.59702,0.0002701,2]
[381471621,1756227049642,-476.07390082,0.0002701,2]
[381471622,1756227049652,-600898.15881728,0.0002701,2]
[381471623,1756227049664,-3610.88629926,0.0002701,2]
[381471624,1756227049673,-1000.0,0.0002701,2]
[381471625,1756227049682,-1106.0,0.0002701,2]
[381471626,1756227049692,-500.0,0.00027073,2]
[381471627,1756227049703,-300.0,0.00027099,10]
[381471628,1756227049722,-300.0,0.00027099,10]
[381471629,1756227049731,-26033.93,0.000271,2]
[381471630,1756227049742,-67349.88,0.000271,7]
[381471631,1756227049752,-1386.91,0.00027103,2]
[381471632,1756227049761,-408.65,0.00027103,2]
[381471633,1756227049771,-150.0,0.00027103,2]
[381471634,1756227049779,-166.12,0.00027103,2]
[381471635,1756227049789,-3600.18,0.00027123,2]
[381471636,1756227049799,-262.49,0.00027123,4]
[381471637,1756227049809,-441.0,0.00027124,2]
[381471638,1756227049819,-441.0,0.00027124,2]
[381471639,1756227049828,-500.0,0.00027124,2]
[381471640,1756227049838,-815.0,0.00027124,2]
[381471641,1756227049848,-500.0,0.00027124,2]
[381471642,1756227049857,-150.0,0.00027124,2]
[381471643,1756227049866,-500.0,0.00027124,2]
[381471644,1756227049875,-500.0,0.00027124,2]
[381471645,1756227049885,-500.0,0.00027124,2]
[381471646,1756227049895,-473.0,0.00027124,2]
[381471647,1756227049904,-250.0,0.00027124,2]
[381471648,1756227049913,-500.0,0.00027124,2]
[381471649,1756227049923,-150.0,0.00027124,2]
[381471650,1756227049933,-500.0,0.00027124,2]
[381471651,1756227049942,-150.0,0.00027124,2]
[381471652,1756227049952,-500.0,0.00027124,2]
[381471653,1756227049965,-500.0,0.00027124,2]
[381471654,1756227049974,-150.0,0.00027124,2]
[381471655,1756227049983,-200.0,0.00027124,2]
[381471656,1756227049992,-500.0,0.00027124,2]
[381471657,1756227050001,-699.0,0.000272,2]
[381471658,1756227050011,-352.36,0.00027285,2]
[381471659,1756227050020,-1057.85,0.000273,2]
[381471660,1756227050030,-2449.17706946,0.00027321,2]
[381471661,1756227050040,-4018.18860089,0.0002739,2]
[381471662,1756227050050,-7937.37838155,0.0002739,2]
[381471663,1756227050059,-3168.78360926,0.0002739,2]
[381471664,1756227050068,-150.0,0.0002739,2]
[381471665,1756227050077,-832.55108079,0.00027397,2]
[381471666,1756227050087,-571.48015064,0.00027397,2]
[381471667,1756227050096,-1500.0,0.00027397,16]
[381471668,1756227050106,-300.0,0.00027397,2]
[381471669,1756227050115,-18591.98,0.00027397,2]
[381471670,1756227050124,-486.1,0.00027397,80]
[381471671,1756227050133,-507.08,0.00027397,2]
[381471672,1756227050142,-700.0,0.00027397,2]
[381471673,1756227050151,-155.05657824,0.00027397,5]
[381471674,1756227050161,-155.9612237,0.00027397,5]
[381471675,1756227050170,-441.0,0.00027398,2]
[381471676,1756227050179,-441.0,0.00027398,2]
[381471677,1756227050188,-815.0,0.00027398,2]
[381471678,1756227050197,-500.0,0.00027398,2]
[381471679,1756227050210,-500.0,0.00027398,2]
[381471680,1756227050219,-500.0,0.00027398,2]
[381471681,1756227050229,-500.0,0.00027398,2]
[381471682,1756227050238,-473.0,0.00027398,2]
[381471683,1756227050248,-500.0,0.00027398,2]
[381471684,1756227050257,-150.0,0.00027398,2]
[381471685,1756227050267,-526.47561258,0.00027398,2]
[381471686,1756227050276,-208.28908392,0.00027398,2]
[381471687,1756227050286,-500.0,0.00027398,2]
[381471688,1756227050295,-500.0,0.00027398,2]
[381471689,1756227050305,-150.0,0.00027398,2]
[381471690,1756227050314,-500.0,0.00027398,2]
[381471691,1756227050324,-2579.37,0.000274,7]
[381471692,1756227050333,-1119.2,0.000274,7]
[381471693,1756227050343,-1500.0,0.00027408,5]
[381471694,1756227050353,-2500.0,0.00027464,5]
[381471695,1756227050363,-2500.0,0.00027464,5]
[381471696,1756227050372,-2500.0,0.00027464,5]
[381471697,1756227050381,-2500.0,0.00027464,5]
[381471698,1756227050391,-852.9675257,0.00027464,5]
[381471699,1756227050400,-12243.46107709,0.00027492,2]
[381471700,1756227050410,-196.60249995,0.000275,2]
[381471701,1756227050420,-536.98561318,0.000275,2]
[381471702,1756227050429,-1400.0,0.00027569,7]
[381471703,1756227050439,-1400.0,0.00027569,7]
[381471704,1756227050448,-3000.0,0.00027569,7]
[381471705,1756227050460,-1000.0,0.00027621,5]
[381471706,1756227050470,-217.0,0.0002765,30]
[381471707,1756227050479,-539.0,0.00027671,14]
[381471708,1756227050489,-441.0,0.00027672,2]
[381471709,1756227050499,-441.0,0.00027672,2]
[381471710,1756227050509,-815.0,0.00027672,2]
[381471711,1756227050519,-500.0,0.00027672,2]
[381471712,1756227050529,-500.0,0.00027672,2]
[381471713,1756227050539,-500.0,0.00027672,2]
[381471714,1756227050548,-500.0,0.00027672,2]
[381471715,1756227050558,-473.0,0.00027672,2]
[381471716,1756227050568,-500.0,0.00027672,2]
[381471717,1756227050578,-500.0,0.00027672,2]
[381471718,1756227050588,-150.0,0.00027672,2]
[381471719,1756227050598,-624.52979163,0.00027672,2]
[381471720,1756227050608,-258.67105874,0.00027672,2]
[381471721,1756227050617,-150.0,0.00027678,2]
[381471722,1756227050627,-12168.08468224,0.00027679,2]
[381471723,1756227050636,-423.4246746,0.00027686,10]
[381471724,1756227050646,-300.0,0.00027686,10]
[381471725,1756227050656,-25815.33559592,0.00027687,8]
[381471726,1756227050670,-300.0,0.00027699,10]
[381471727,1756227050680,-26033.93,0.000277,2]
[381471728,1756227050689,-67349.88,0.000277,7]
[381471729,1756227050699,-938.26,0.00027739,2]
[381471730,1756227050713,-213.0,0.0002779,2]
[381471731,1756227050722,-209.0,0.0002779,2]
[381471732,1756227050732,-229.0,0.0002779,2]
[381471733,1756227050743,-275.99843175,0.000278,5]
[381471734,1756227050753,-6294.58211479,0.00027852,2]
[381471735,1756227050763,-500.0,0.00027867,6]
[381471736,1756227050772,-500.0,0.00027867,6]
[381471737,1756227050783,-150.0,0.00027873,5]
[381471738,1756227050793,-539.77,0.0002788,2]
[381471739,1756227050802,-347.58,0.0002788,2]
[381471740,1756227050812,-300.0,0.00027899,10]
[381471741,1756227050821,-500.0,0.00027899,10]
[381471742,1756227050831,-300.0,0.00027899,10]
[381471743,1756227050841,-141858.58269892,0.000279,3]
[381471744,1756227050850,-160.0,0.000279,3]
[381471745,1756227050861,-21033.37345563,0.00027916,2]
[381471746,1756227050870,-332.24,0.00027925,2]
[381471747,1756227050880,-539.77,0.00027925,2]
[381471748,1756227050890,-539.0,0.00027945,14]
[381471749,1756227050900,-441.0,0.00027946,2]
[381471750,1756227050910,-815.0,0.00027946,2]
[381471751,1756227050919,-500.0,0.00027946,2]
[381471752,1756227050929,-500.0,0.00027946,2]
[381471753,1756227050938,-500.0,0.00027946,2]
[381471754,1756227050948,-500.0,0.00027946,2]
[381471755,1756227050960,-473.0,0.00027946,2]
[381471756,1756227050970,-500.0,0.00027946,2]
[381471757,1756227050980,-343.56535766,0.00027946,2]
[381471758,1756227050990,-255.61648622,0.00027946,2]
[381471759,1756227051000,-470.51793934,0.00027997,2]
[381471760,1756227051010,-279.09,0.00028,2]
[381471761,1756227051020,-160.0,0.00028,2]
[381471762,1756227051029,-1000.0,0.00028,2]
[381471763,1756227051039,-3000.0,0.00028,2]
[381471764,1756227051049,-900.0,0.00028,3]
[381471765,1756227051059,-384.0,0.00028,2]
[381471766,1756227051068,-766.26174169,0.00028,2]
[381471767,1756227051078,-394.0488249,0.00028,30]
[381471768,1756227051087,-13208.63084603,0.00028,2]
[381471769,1756227051098,-264.17261692,0.00028,2]
[381471770,1756227051107,-2579.37,0.00028,7]
[381471771,1756227051116,-1119.2,0.00028,7]
[381471772,1756227051128,-844.63891918,0.00028,7]
[381471773,1756227051140,-160.0,0.00028,7]
[381471774,1756227051149,-458.7662338,0.00028,7]
[381471775,1756227051159,-308.95,0.00028,2]
[381471776,1756227051169,-6002.05,0.00028,7]
[381471777,1756227051178,-1395.95,0.00028,7]
[381471778,1756227051188,-4976.2,0.00028,7]
[381471779,1756227051197,-5345.58,0.00028,7]
[381471780,1756227051210,-1274.43,0.00028,7]
[381471781,1756227051219,-1200.41,0.00028,7]
[381471782,1756227051229,-4038.93,0.00028,7]
[381471783,1756227051239,-1564.08,0.00028,7]
[381471784,1756227051249,-3000.0,0.00028012,5]
[381471785,1756227051259,-319.48991129,0.00028012,5]
[381471786,1756227051268,-3000.0,0.00028012,5]
[381471787,1756227051279,-660.60141138,0.00028012,5]
[381471788,1756227051288,-8849.05659034,0.000281,2]
[381471789,1756227051298,-151.16,0.00028119,2]
[381471790,1756227051308,-12243.46107709,0.00028148,2]
[381471791,1756227051318,-1500.0,0.00028168,5]
[381471792,1756227051328,-1074.25,0.00028219,7]
[381471793,1756227051338,-539.0,0.00028219,14]
[381471794,1756227051347,-441.0,0.0002822,2]
[381471795,1756227051357,-815.0,0.0002822,2]
[381471796,1756227051367,-250.0,0.0002822,2]
[381471797,1756227051376,-350.0,0.0002822,2]
[381471798,1756227051386,-500.0,0.0002822,2]
[381471799,1756227051395,-500.0,0.0002822,2]
[381471800,1756227051405,-473.0,0.0002822,2]
[381471801,1756227051415,-500.0,0.0002822,2]
[381471802,1756227051425,-26033.93,0.000283,2]
[381471803,1756227051434,-67349.88,0.000283,7]
[381471804,1756227051444,-1269.74,0.00028309,30]
[381471805,1756227051453,-320.74051982,0.0002831,2]
[381471806,1756227051466,-685.0,0.0002838,2]
[381471807,1756227051476,-500.0,0.00028383,10]
[381471808,1756227051486,-25815.33559592,0.00028384,9]
[381471809,1756227051496,-1400.0,0.00028391,7]
[381471810,1756227051505,-1400.0,0.00028391,7]
[381471811,1756227051515,-3000.0,0.00028391,7]
[381471812,1756227051524,-250.0,0.00028421,5]
[381471813,1756227051534,-539.0,0.00028493,14]
[381471814,1756227051544,-441.0,0.00028494,2]
[381471815,1756227051554,-815.0,0.00028494,2]
[381471816,1756227051563,-500.0,0.00028494,2]
[381471817,1756227051573,-500.0,0.00028494,2]
[381471818,1756227051582,-473.0,0.00028494,2]
[381471819,1756227051592,-500.0,0.00028494,2]
[381471820,1756227051602,-344.2,0.000285,2]
[381471821,1756227051612,-344.2,0.000285,2]
[381471822,1756227051622,-217.0,0.000285,30]
[381471823,1756227051631,-6932.22,0.000285,7]
[381471824,1756227051641,-1692.935858,0.000285,2]
[381471825,1756227051651,-2442.08344118,0.0002856,5]
[381471826,1756227051661,-3500.0,0.0002856,5]
[381471827,1756227051672,-1057.85,0.000286,30]
[381471828,1756227051680,-2579.37,0.000286,7]
[381471829,1756227051688,-1119.2,0.000286,7]
[381471830,1756227051696,-151.0,0.000286,7]
[381471831,1756227051703,-151.0,0.000286,7]
[381471832,1756227051713,-151.0,0.000286,7]
[381471833,1756227051721,-151.0,0.000286,7]
[381471834,1756227051729,-443.205,0.000286,7]
[381471835,1756227051737,-242.497026,0.000286,7]
[381471836,1756227051746,-443.205,0.000286,7]
[381471837,1756227051754,-190.320406,0.000286,7]
[381471838,1756227051762,-443.205,0.000286,7]
[381471839,1756227051770,-190.320406,0.000286,7]
[381471840,1756227051778,-303.327936,0.000286,7]
[381471841,1756227051786,-443.205,0.000286,7]
[381471842,1756227051794,-190.320406,0.000286,7]
[381471843,1756227051803,-303.327936,0.000286,7]
[381471844,1756227051810,-190.320406,0.000286,7]
[381471845,1756227051818,-303.327936,0.000286,7]
[381471846,1756227051826,-151.0,0.000286,7]
[381471847,1756227051834,-303.327936,0.000286,7]
[381471848,1756227051842,-151.0,0.000286,7]
[381471849,1756227051850,-151.0,0.000286,7]
[381471850,1756227051858,-151.0,0.000286,7]
[381471851,1756227051867,-156.638692,0.000286,7]
[381471852,1756227051876,-151.0,0.000286,7]
[381471853,1756227051885,-151.0,0.000286,7]
[381471854,1756227051893,-156.638692,0.000286,7]
[381471855,1756227051902,-151.0,0.000286,7]
[381471856,1756227051912,-156.638692,0.000286,7]
[381471857,1756227051921,-235.842168,0.000286,7]
[381471858,1756227051931,-156.638692,0.000286,7]
[381471859,1756227051941,-151.0,0.000286,7]
[381471860,1756227051951,-151.0,0.000286,7]
[381471861,1756227051962,-151.0,0.000286,7]
[381471862,1756227051972,-283.449134,0.000286,7]
[381471863,1756227051982,-283.449134,0.000286,7]
[381471864,1756227051991,-283.449134,0.000286,7]
[381471865,1756227052002,-283.449134,0.000286,7]
[381471866,1756227052012,-151.0,0.000286,7]
[381471867,1756227052022,-151.0,0.000286,7]
[381471868,1756227052032,-151.0,0.000286,7]
[381471869,1756227052042,-151.0,0.000286,7]
[381471870,1756227052052,-151.0,0.000286,7]
[381471871,1756227052061,-186.998784,0.000286,7]
[381471872,1756227052071,-151.0,0.000286,7]
[381471873,1756227052081,-151.0,0.000286,7]
[381471874,1756227052091,-151.0,0.000286,7]
[381471875,1756227052101,-169.006403,0.000286,7]
[381471876,1756227052110,-151.0,0.000286,7]
[381471877,1756227052121,-200.450853,0.000286,7]
[381471878,1756227052132,-151.0,0.000286,7]
[381471879,1756227052142,-151.0,0.000286,7]
[381471880,1756227052152,-151.0,0.000286,7]
[381471881,1756227052162,-156.209115,0.000286,7]
[381471882,1756227052171,-156.209115,0.000286,7]
[381471883,1756227052179,-151.0,0.000286,7]
[381471884,1756227052187,-156.209115,0.000286,7]
[381471885,1756227052196,-151.0,0.000286,7]
[381471886,1756227052204,-151.0,0.000286,7]
[381471887,1756227052215,-156.209115,0.000286,7]
[381471888,1756227052224,-151.0,0.000286,7]
[381471889,1756227052234,-151.0,0.000286,7]
[381471890,1756227052244,-151.0,0.000286,7]
[381471891,1756227052254,-151.0,0.000286,7]
[381471892,1756227052264,-151.0,0.000286,7]
[381471893,1756227052274,-152.35223,0.000286,7]
[381471894,1756227052285,-151.139118,0.000286,7]
[381471895,1756227052295,-151.482849,0.000286,7]
[381471896,1756227052305,-151.0,0.000286,7]
[381471897,1756227052315,-151.0,0.000286,7]
[381471898,1756227052326,-151.0,0.000286,7]
[381471899,1756227052335,-206.644546,0.000286,7]
[381471900,1756227052345,-206.644546,0.000286,7]
[381471901,1756227052355,-151.0,0.000286,7]
[381471902,1756227052365,-206.644546,0.000286,7]
[381471903,1756227052375,-151.0,0.000286,7]
[381471904,1756227052716,-206.644546,0.000286,7]
[381471905,1756227052726,-151.0,0.000286,7]
[381471906,1756227052736,-151.0,0.000286,7]
[381471907,1756227052747,-151.0,0.000286,7]
[381471908,1756227052757,-151.0,0.000286,7]
[381471909,1756227052766,-151.0,0.000286,7]
[381471910,1756227052775,-151.0,0.000286,7]
[381471911,1756227052785,-151.0,0.000286,7]
[381471912,1756227052795,-151.0,0.000286,7]
[381471913,1756227052805,-151.0,0.000286,7]
[381471914,1756227052815,-151.0,0.000286,7]
[381471915,1756227052826,-151.0,0.000286,7]
[381471916,1756227052836,-151.0,0.000286,7]
[381471917,1756227052846,-151.0,0.000286,7]
[381471918,1756227052856,-151.0,0.000286,7]
[381471919,1756227052865,-151.0,0.000286,7]
[381471920,1756227052876,-151.0,0.000286,7]
[381471921,1756227052886,-151.0,0.000286,7]
[381471922,1756227052895,-234.528387,0.000286,7]
[381471923,1756227052906,-234.528387,0.000286,7]
[381471924,1756227052916,-460.075089,0.000286,7]
[381471925,1756227052926,-151.0,0.000286,7]
[381471926,1756227052936,-252.156017,0.000286,7]
[381471927,1756227052945,-234.528387,0.000286,7]
[381471928,1756227052955,-460.075089,0.000286,7]
[381471929,1756227052966,-151.0,0.000286,7]
[381471930,1756227052976,-252.156017,0.000286,7]
[381471931,1756227052986,-234.528387,0.000286,7]
[381471932,1756227052996,-460.075089,0.000286,7]
[381471933,1756227053006,-151.0,0.000286,7]
[381471934,1756227053016,-151.0,0.000286,7]
[381471935,1756227053025,-484.268766,0.000286,7]
[381471936,1756227053035,-252.156017,0.000286,7]
[381471937,1756227053045,-151.0,0.000286,7]
[381471938,1756227053055,-460.075089,0.000286,7]
[381471939,1756227053065,-484.268766,0.000286,7]
[381471940,1756227053075,-151.0,0.000286,7]
[381471941,1756227053084,-252.156017,0.000286,7]
[381471942,1756227053094,-151.0,0.000286,7]
[381471943,1756227053104,-484.268766,0.000286,7]
[381471944,1756227053114,-151.0,0.000286,7]
[381471945,1756227053124,-484.268766,0.000286,7]
[381471946,1756227053134,-151.0,0.000286,7]
[381471947,1756227053144,-151.0,0.000286,7]
[381471948,1756227053154,-151.0,0.000286,7]
[381471949,1756227053165,-151.0,0.000286,7]
[381471950,1756227053174,-151.0,0.000286,7]
[381471951,1756227053184,-151.0,0.000286,7]
[381471952,1756227053194,-151.0,0.000286,7]